Cogmind - Beta 13 @@@ ROGUE MODE // 2024.04.15 @ 13:09:00 Player: darkmiz Result: Destroyed by L-31 Rogue with Katana Performance ------------- Evolutions (2) 1000 Regions Visited (5) 1000 Robots Destroyed (81) 405 Value Destroyed (2220) 2220 Prototype IDs (2) 40 Alien Tech Used (0) 0 Bonus (173) 173 TOTAL SCORE: 4838 Bonus ------- High Alert Combat Kills 297 Follower Combat Kills 21 Friendly Fire -145 Cogmind --------- Core Integrity 0/550 Matter 115/300 Energy 100/100 System Corruption 0% Temperature Cool (27) Movement Core (700) Ox13 Location -8/Materials Parts ------- > --- POWER (1) -------- (None) > --- PROPULSION (4) --- (None) > --- UTILITY (4) ------ High-capacity Storage Unit Hacking Suite > --- WEAPON (2) ------- (None) > --- INVENTORY (20) --- Light Nuclear Core Light Angular Momentum Engine Cesium-ion Thruster Large Battery (200) Structural Scanner Hacking Suite Lightning Gun Heavy Assault Rifle Heavy Assault Rifle Heavy Assault Rifle Missile Launcher Heavy Hammer Peak State ------------ > --- POWER ------------ Improved Ion Engine > --- PROPULSION ------- Light Treads Light Treads Carbon-fiber Leg Improved Carbon-fiber Leg > --- UTILITY ---------- High-capacity Storage Unit Light Armor Plating Light Armor Plating Dynamic Insulation System > --- WEAPON ----------- Beamcaster Heavy Assault Rifle > --- INVENTORY -------- Light Deuterium Engine Light Angular Momentum Engine Light Treads Aluminum Leg Cesium-ion Thruster Improved Heat Sink High-capacity Storage Unit Large Battery Structural Scanner Core Analyzer Propulsion Shielding Light Armor Plating Recalibrator Lightning Gun Heavy Assault Rifle Gauss Cannon Grenade Launcher Rocket Launcher Heavy Hammer [Rating: 29] Favorites ----------- Power Ion Engine Engine Ion Engine Power Core Light Nuclear Core Propulsion Light Treads Treads Light Treads Leg Improved Carbon-fiber Leg Wheel Wheel Utility Light Armor Plating Device Dynamic Insulation System Storage High-capacity Storage Unit Hackware Hacking Suite Protection Light Armor Plating Weapon Heavy Assault Rifle Energy Gun Particle Gun Energy Cannon Heavy Ion Cannon Ballistic Gun Heavy Assault Rifle Ballistic Cannon Gauss Cannon Launcher Grenade Launcher Build | -11 -10 -10 -10 -9 -8 ------- Run | Yrd Mat Min Exi Min Mat Slots Evolved 4 | . . . . . 4 Power . | . . . . . . Propulsion 2 | . . . . . 2 Utility 2 | . . . . . 2 Weapon . | . . . . . . Parts Attached 73 | 7 12 4 2 6 42 Power 5 | 1 . 2 . . 2 Engine 4 | 1 . 2 . . 1 Core 1 | . . . . . 1 Reactor . | . . . . . . Propulsion 15 | 3 1 1 1 . 9 Treads 11 | 2 1 1 1 . 6 Leg 3 | . . . . . 3 Wheel 1 | 1 . . . . . Hover . | . . . . . . Flight . | . . . . . . Utility 22 | 1 5 . . 2 14 Device 4 | . . . . . 4 Storage 3 | 1 2 . . . . Processor . | . . . . . . Hackware 1 | . . . . . 1 Protection 14 | . 3 . . 2 9 Artifact . | . . . . . . Weapon 31 | 2 6 1 1 4 17 Energy Gun 5 | 1 1 . . 2 1 Energy Cannon 1 | . . . . . 1 Ballistic Gun 14 | 1 3 1 . 2 7 Ballistic Cannon 3 | . 2 . . . 1 Launcher 8 | . . . 1 . 7 Special Weapon . | . . . . . . Impact Weapon . | . . . . . . Slashing Weapon . | . . . . . . Piercing Weapon . | . . . . . . Special Melee Weapon . | . . . . . . Unidentified Prototypes . | . . . . . . Parts Lost 24 | . 1 1 . . 22 Power 2 | . . . . . 2 Propulsion 10 | . . 1 . . 9 Utility 8 | . . . . . 8 Weapon 4 | . 1 . . . 3 Highest Loss Streak 16 | . 1 1 . . 16 To Critical Strikes . | . . . . . . Average Slot Usage (%) 90 | . 88 99 71 97 99 Engine 10 | . 9 13 14 14 4 Core 1 | . . . . . 4 Treads 25 | . 27 28 28 28 17 Leg 4 | . . . . . 17 Device 1 | . . . . . 6 Storage 12 | . 14 14 14 14 9 Protection 13 | . 8 14 14 13 17 Energy Gun 3 | . 6 . . 12 2 Ballistic Gun 13 | . 18 28 . 12 10 Ballistic Cannon 1 | . 2 . . . 4 Naked Turns . | . . . . . . Heaviest Build 65 | 14 53 53 54 56 65 Greatest Support 60 | 40 40 40 40 40 60 Greatest Overweight (x) 13 | . 2 1 1 1 13 Average Overweight (x) . | . . 1 1 1 1 Largest Inventory Capacity 20 | 8 20 20 20 20 20 Average Capacity 19 | 6 17 20 20 20 20 Most Carried 20 | 7 15 19 20 20 20 Average Carried 17 | 4 10 16 19 19 19 Final Capacity 20 | 8 20 20 20 20 20 Final Carried 20 | 6 15 19 20 20 12 Class Distribution -------------------- 65% | Mutant 34% | Scavenger-Mutant Dominant Class ---------------- Mutant | -10/Materials Mutant | -10/Mines Mutant | -10/Exiles Scavenger-Mutant | -9/Mines Scavenger-Mutant | -8/Materials Resources | -11 -10 -10 -10 -9 -8 ----------- Run | Yrd Mat Min Exi Min Mat Matter Collected 1966 | 250 297 120 . 135 1164 Remotely . | . . . . . . Salvage Created 2202 | . 344 89 . 107 1662 Parts 154 | . 35 4 . 12 103 Haulers Intercepted . | . . . . . . Recyclers Shooed 3 | . 1 2 . . . Parts Field Recycled . | . . . . . . Retrieved Matter . | . . . . . . Parts Self-Destructed . | . . . . . . Prevented . | . . . . . . Kills | -11 -10 -10 -10 -9 -8 ------- Run | Yrd Mat Min Exi Min Mat Combat Hostiles Destroyed 61 | . 13 2 . 4 42 Guns 32 | . 7 2 . 4 19 Cannons 17 | . 6 . . . 11 AOE 12 | . . . . . 12 Classes Destroyed 10 | . 5 . . . 5 Worker 3 | . 1 . . . 2 Builder 6 | . . . . . 6 Recycler 2 | . . . . . 2 Operator 2 | . 2 . . . . Watcher 6 | . 3 . . . 3 Swarmer 23 | . 9 . . 4 10 Grunt 27 | . 4 2 . 1 20 Brawler 1 | . . . . . 1 Duelist 1 | . . . . . 1 Sentry 10 | . . . . . 10 Best Kill Streak 8 | . 4 2 . 3 8 Combat Bots Only 5 | . 3 2 . 3 5 Max Kills in Single Turn 4 | . 2 1 . 1 4 Gunslinging 1 | . 1 . . . . Exploded 2 | . . . . . 2 Melee . | . . . . . . Uniques/NPCs Destroyed . | . . . . . . Combat | -11 -10 -10 -10 -9 -8 -------- Run | Yrd Mat Min Exi Min Mat Hostile Shots Fired 430 | . 65 16 . 19 330 Missed 122 | . 16 5 . 5 96 Damage Taken 4160 | . 455 158 . 100 3447 Core 657 | . 68 14 . 14 561 Absorbed by Shields . | . . . . . . Redirected to Shielding 52 | . . . . . 52 Ignored by Resistances 25 | . . . . . 25 Core Remaining (%) 80 | 100 . . . 61 . Volleys Fired 178 | . 38 11 . 7 122 Largest 2 | . 2 2 . 2 2 Hottest 108 | . 75 43 . 88 108 Shots Fired 352 | . 73 22 1 15 241 Gun 254 | . 56 22 . 15 161 Cannon 71 | . 17 . . . 54 Launcher 27 | . . . 1 . 26 Special . | . . . . . . Kinetic 241 | . 55 22 . 7 157 Thermal 66 | . . . . 8 58 Explosive 27 | . . . 1 . 26 Electromagnetic 18 | . 18 . . . . Robot Hit Streak 19 | . 5 9 . 2 19 Robot Miss Streak 7 | . 4 2 . 2 7 Penetration Max . | . . . . . . Secondary Targets 5 | . 1 1 . 2 1 Max Gunslinging Chain 1 | . 1 1 . 1 1 Shots Hit Robots 193 | . 39 15 . 5 134 Core Hits 135 | . 24 8 . 5 98 Critical Kills . | . . . . . . Critical Parts Destroyed . | . . . . . . Critical Strikes 14 | . 1 . . . 13 Burn 7 | . . . . . 7 Blast 7 | . 1 . . . 6 Melee Attacks . | . . . . . . Impact . | . . . . . . Slashing . | . . . . . . Piercing . | . . . . . . Sneak Attacks . | . . . . . . Combat Hostiles . | . . . . . . Follow-up Attacks . | . . . . . . Damage Inflicted 5603 | . 653 191 . 123 4636 Guns 2377 | . 432 191 . 123 1631 Cannons 1139 | . 196 . . . 943 Explosions 2087 | . 25 . . . 2062 Melee . | . . . . . . Ramming . | . . . . . . Kinetic 2415 | . 460 191 . 44 1720 Thermal 1034 | . 25 . . 79 930 Explosive 1986 | . . . . . 1986 Electromagnetic 168 | . 168 . . . . Impact . | . . . . . . Slashing . | . . . . . . Piercing . | . . . . . . Highest Corruption 1 | . 1 1 1 1 . Average Corruption 1 | . 1 1 1 1 . Corruption Purged . | . . . . . . Corruption Blocked . | . . . . . . Effects 64 | . 13 17 16 18 . Message Errors 14 | . 1 5 3 5 . Matter Fused 10 | . 2 2 3 3 . Heat Flow Errors 13 | . 6 1 4 2 . Energy Discharges 9 | . 2 3 1 3 . Parts Rejected 1 | . . . . 1 . Parts Fused 2 | . . . 1 1 . Data Loss (minor) 9 | . 2 3 3 1 . Data Loss (major) 4 | . . 3 . 1 . Misfires 2 | . . . 1 1 . Overload Shots . | . . . . . . Overflow Damage 27 | . . . . . 27 Projectiles 14 | . . . . . 14 Explosions 13 | . . . . . 13 Melee . | . . . . . . Knockbacks 5 | . . . . . 5 Impact . | . . . . . . Kinetic 5 | . . . . . 5 Secondary . | . . . . . . Self-Inflicted Damage 50 | . 9 . . . 41 Shots 4 | . 1 . . . 3 Rammed . | . . . . . . Targets Rammed . | . . . . . . Kicked . | . . . . . . Crushed . | . . . . . . Highest Temperature 339 | . 302 121 217 236 339 Average Temperature 98 | . 103 26 87 69 105 Received Heat Transfer 1794 | . 72 111 . . 1611 Effects 8 | . . . . . 8 Interference 4 | . . . . . 4 Matter Decay 3 | . . . . . 3 Damage (minor) 1 | . . . . . 1 Siege Activations . | . . . . . . Robots Corrupted . | . . . . . . Combat Hostiles . | . . . . . . Parts Fried . | . . . . . . Impact Corruptions . | . . . . . . Robots Melted . | . . . . . . Combat Hostiles . | . . . . . . Parts Melted 2 | . 1 . . . 1 Heat Transferred 2200 | . 50 . . 185 1965 Parts Sabotaged . | . . . . . . Parts Stolen . | . . . . . . Parts Stripped . | . . . . . . Power Chain Reactions 1 | . 1 . . . . Alert | -11 -10 -10 -10 -9 -8 ------- Run | Yrd Mat Min Exi Min Mat Peak Influence 723 | . 209 50 . 83 723 Initial . | . . . . . . Average 178 | . 73 2 . 23 474 Maximum Alert Level 3 | . 1 . . . 3 Low Security (%) 67 | 100 91 100 . 100 6 Level 1 7 | . 8 . . . 16 Level 2 23 | . . . . . 71 Level 3 1 | . . . . . 5 Level 4 . | . . . . . . Level 5 . | . . . . . . High Security . | . . . . . . Max Security . | . . . . . . Squads Dispatched 14 | . 2 . . . 12 Investigation 2 | . . . . . 2 Extermination . | . . . . . . Reinforcement 7 | . 2 . . . 5 Assault 1 | . . . . . 1 Garrison 4 | . . . . . 4 Intercept . | . . . . . . Searches Triggered . | . . . . . . Construction Impeded 2 | . . . . . 2 Haulers Reinforced . | . . . . . . Active Scanning Responses . | . . . . . . Cargo Convoy Interrupts . | . . . . . . Stealth | -11 -10 -10 -10 -9 -8 --------- Run | Yrd Mat Min Exi Min Mat Distress Signals 3 | . . . . . 3 Communications Jammed . | . . . . . . Distress Signals . | . . . . . . Times Spotted 107 | . 24 3 . 7 73 Peak Tracking Total 10 | . 4 2 . 4 10 Tactical Retreats 10 | . 1 . . . 9 Traps | -11 -10 -10 -10 -9 -8 ------- Run | Yrd Mat Min Exi Min Mat Traps Triggered 7 | . 4 . . 1 2 Indirectly . | . . . . . . Trap Hack Attempts . | . . . . . . Triggered . | . . . . . . Disarmed . | . . . . . . Reprogrammed . | . . . . . . Reused . | . . . . . . Traps Extracted . | . . . . . . Installed . | . . . . . . Triggered . | . . . . . . Machines | -11 -10 -10 -10 -9 -8 ---------- Run | Yrd Mat Min Exi Min Mat Machines Disabled 10 | . 1 . . 3 6 Max in Single Turn 2 | . 1 . . 1 2 Machines Repaired . | . . . . . . Machines Dismantled . | . . . . . . Machines Sabotaged . | . . . . . . Overloaded Fab Kills . | . . . . . . Hacking | -11 -10 -10 -10 -9 -8 --------- Run | Yrd Mat Min Exi Min Mat Machines Accessed 19 | . 7 1 4 1 6 Terminals 13 | . 7 1 . . 5 Fabricators . | . . . . . . Repair Stations . | . . . . . . Recycling Units 1 | . . . . . 1 Scanalyzers . | . . . . . . Garrison Access . | . . . . . . Total Hacks 39 | . 13 1 4 1 20 Successful 22 | . 5 1 4 1 11 Failed 17 | . 8 . . . 9 Catastrophic 8 | . 4 . . . 4 Database Lockouts . | . . . . . . Manual 2 | . . . . . 2 Terminals 33 | . 13 1 . . 19 Fabricators . | . . . . . . Repair Stations . | . . . . . . Recycling Units 1 | . . . . . 1 Scanalyzers . | . . . . . . Garrison Access . | . . . . . . Terminal Hacks 21 | . 5 1 4 1 10 Record 4 | . . . 4 . . Prototype ID Bank 1 | . 1 . . . . Open Door 1 | . . . . 1 . Emergency Access Points 1 | . . . . . 1 Alert Level 4 | . . . . . 4 Unreport Threat 2 | . . . . . 2 Locate Traps 3 | . 3 . . . . Reinforcement Status 1 | . 1 . . . . Hauler Manifests 1 | . . . . . 1 Zone Layout 3 | . . 1 . . 2 Fabricator Hacks . | . . . . . . Repair Station Hacks . | . . . . . . Recycling Unit Hacks 1 | . . . . . 1 Retrieve Matter 1 | . . . . . 1 Scanalyzer . | . . . . . . Garrison Access Hacks . | . . . . . . Unauthorized Hacks . | . . . . . . Terminals . | . . . . . . Fabricators . | . . . . . . Repair Stations . | . . . . . . Recycling Units . | . . . . . . Scanalyzers . | . . . . . . Garrison Access . | . . . . . . Data Cores Recovered . | . . . . . . Used . | . . . . . . Hacking Detections 12 | . 5 1 . . 6 Full Trace Events . | . . . . . . Feedback Events . | . . . . . . Feedback Blocked . | . . . . . . Robot Schematics Acquired . | . . . . . . Robots Built . | . . . . . . Authchips . | . . . . . . Time . | . . . . . . Total Robot Build Rating . | . . . . . . Part Schematics Acquired . | . . . . . . Parts Built . | . . . . . . Authchips . | . . . . . . Time . | . . . . . . Total Part Build Rating . | . . . . . . Parts Repaired . | . . . . . . Time . | . . . . . . Parts Recycled . | . . . . . . Recycled Matter . | . . . . . . Retrieved Matter 150 | . . . . . 150 Retrieved Components . | . . . . . . Parts Scanalyzed . | . . . . . . Part Schematics Acquired . | . . . . . . Parts Damaged . | . . . . . . Bothacking | -11 -10 -10 -10 -9 -8 ------------ Run | Yrd Mat Min Exi Min Mat Used RIF Installer . | . . . . . . Robots Hacked . | . . . . . . Non-combat . | . . . . . . Combat . | . . . . . . Robot Hacks Applied . | . . . . . . Relay Couplers Released . | . . . . . . Fabnet Peak Effective % . | . . . . . . Robots Rewired . | . . . . . . Allies Hacked . | . . . . . . Hacks Repelled . | . . . . . . Allies | -11 -10 -10 -10 -9 -8 -------- Run | Yrd Mat Min Exi Min Mat Total Allies 3 | . . . . 3 . Largest Group 3 | . . . . 3 . Highest-Rated Group 40 | . . . . 40 . Highest-Rated Ally 16 | . . . . 16 . Total Orders . | . . . . . . Ally Attacks 16 | . . . . 16 . Total Damage 88 | . . . . 88 . Kills 3 | . . . . 3 . Allies Corrupted . | . . . . . . Allies Melted . | . . . . . . Intel | -11 -10 -10 -10 -9 -8 ------- Run | Yrd Mat Min Exi Min Mat Robot Analysis Total . | . . . . . . Derelict Logs Recovered 4 | . . 3 . 1 . Drone Launches . | . . . . . . Drone Recoveries . | . . . . . . Exploration | -11 -10 -10 -10 -9 -8 ------------- Run | Yrd Mat Min Exi Min Mat Turns Passed 11337 | 80 1867 2237 2727 1558 2868 Spaces Moved 4492 | 46 794 901 1134 624 993 Core 13 | 11 . . . . 2 Treads 4161 | 35 794 901 1134 624 673 Legs 318 | . . . . . 318 Wheels . | . . . . . . Hover . | . . . . . . Flight . | . . . . . . Fastest Speed 50 | 50 160 240 240 240 160 Average Speed 233 | 133 211 240 240 240 240 Slowest Speed 700 | 160 320 240 240 240 700 Overloaded Moves . | . . . . . . Propulsion Burnouts . | . . . . . . Robots Hopped . | . . . . . . Cave-ins Triggered . | . . . . . . Exploration Rate (%) 76 | 3 99 99 94 98 67 Regions Visited 5 Branch Regions 3 Pre-discovered Areas 2 | . . 1 . 1 . Known Exits Taken . | . . . . . . Unknown Exits Taken 5 | 1 1 1 1 1 . Scrap Searched 3 | . . 1 . 2 . Spaces Dug . | . . . . . . Terrain Destroyed 230 | . 5 . 2 . 223 Melee . | . . . . . . Projectile 23 | . . . . . 23 AOE 207 | . 5 . 2 . 200 Terrain Rammed . | . . . . . . Walls Destroyed . | . . . . . . Machines Disabled . | . . . . . . Actions | -11 -10 -10 -10 -9 -8 --------- Run | Yrd Mat Min Exi Min Mat Total 4988 | 64 910 957 1141 674 1242 Wait 126 | . 44 32 1 17 32 Move 4487 | 45 793 900 1133 623 993 Hop . | . . . . . . Pick Up 81 | 12 19 8 1 12 29 Fast Attach 6 | . . . . 3 3 Attach 38 | 6 7 3 . 3 19 Detach 3 | . . . 2 . 1 Swap 29 | 1 5 1 2 . 20 Drop 40 | . 4 2 2 9 23 Fire 178 | . 38 11 . 7 122 Melee . | . . . . . . Ram . | . . . . . . Kick . | . . . . . . Crush . | . . . . . . Escape Stasis . | . . . . . . Rewire . | . . . . . . Trap . | . . . . . . Miscellaneous . | . . . . . . Route ------- -11/Scrapyard -10/Materials (discovered 4 exits: *Mat x3 / *Min) -10/Mines (discovered 3 exits: *Mat x2 / *Exi) -10/Exiles (discovered 2 exits: *Min x2) -9/Mines (discovered 2 exits: *Mat x2) -8/Materials (discovered 2 exits: *Fac x2) History --------- Turn | Location | Event 50 | -11/Scrapyard | Discovered new exit (range 15) 81 | -11/Scrapyard | Entered Materials 307 | -10/Materials | Build established: Mutant 690 | -10/Materials | Discovered new exit (range 3) 906 | -10/Materials | Discovered new exit (range 7) 1345 | -10/Materials | Discovered new exit (range 16) 1721 | -10/Materials | Discovered new exit (range 5) 1948 | -10/Materials | Entered Mines 2714 | -10/Mines | Identified exit to Materials 2745 | -10/Mines | Learned Materials non-interactive machine intel 2805 | -10/Mines | Learned location of Storage (-9) 2904 | -10/Mines | Discovered new exit (range 10) 2904 | -10/Mines | Discovered exit to Materials (range 14) 2923 | -10/Mines | Deemed a non-threat by the Exiles lab entrance 3469 | -10/Mines | Joined a pair of Derelicts in attacking an 0b10 outpost 3560 | -10/Mines | Received a Rocket Launcher from a helpful Derelict 4185 | -10/Mines | Entered Exiles 4185 | -10/Exiles | Found Exiles lab abandoned 4233 | -10/Exiles | Discovered new exit (range 14) 5440 | -10/Exiles | Discovered new exit (range 14) 6912 | -10/Exiles | Entered Mines 6922 | -9/Mines | Assisted by bots powering up and referring to "LRC-V3" 7006 | -9/Mines | Discovered new exit (range 4) 7308 | -9/Mines | Build established: Scavenger-Mutant 8351 | -9/Mines | Discovered new exit (range 6) 8383 | -9/Mines | Met a Derelict who couldn't figure out how to use a Trap Extractor 8470 | -9/Mines | Entered Materials 8470 | -8/Materials | Evolved 4 slots: Propulsion x2, Utility x2 8471 | -8/Materials | Identified exit to Factory 8472 | -8/Materials | Loaded intel: 32 non-interactive machine locations 8799 | -8/Materials | Lost 3 parts (1p1n1u) 8829 | -8/Materials | Garrison activated, responded to threat 8851 | -8/Materials | Discovered exit to Factory (range 16) 11270 | -8/Materials | First assault squad dispatched 11284 | -8/Materials | Garrison activated, responded to threat 11321 | -8/Materials | Core integrity fell below 50% 11336 | -8/Materials | Core integrity fell below 20% 11338 | -8/Materials | Destroyed by L-31 Rogue with Katana Last Messages --------------- Lgt. Nuclear Core destroyed. Lgt. Treads destroyed. Acquired 39 matter. R-06 Scavenger collects Com. Battery. Critical hit (Burn: +37). Imp. Heat Sink destroyed. U-05 Engineer lays Concrete. Lgt. Treads destroyed. U-05 Engineer lays Concrete. Critical hit (Burn: +37). U-05 Engineer lays Concrete. Lgt. Treads destroyed. Minigun destroyed. U-05 Engineer builds a Wall. Critical hit (Burn: +37). Hvy. Ion Cannon destroyed. Knocked back. Critical hit (Burn: +37). U-05 Engineer lays Concrete. U-05 Engineer builds a Wall. Map ----- +----------------------------------------------------+ | ????????????????# # ####### #?????# | | ????????????????# # #############?????# | | ????????????????# # # #????????# | | ????????????????########### # ! #????????# | | ????????????????????????# # # ! #????????# | | ????????????????????????### +* #????????# | | ??????????????????????????# # [#????????## | | ??????????????????????????# # #?????????? | | ??????????????????????????# # **#?????????? | | ???????????????"""?"""???## # ***#?????????? | | ???????????????"""?"""???## # ***#????? ?? | | ???????????????"""?"""???## ##########???#####?? | | ?????????????????????????## # #??????????# ?? | | ?????????????##??????????## ###??????????? ## | | ?????????????? ??????????# ################ ## | | ??????????????? ????????## | | ???????????????#/########## | | ???????????????#o ## ################+## | | ???????????????# # ############ ## | | ????"""?""" ???# u# = + + """ #? | | ???""""""""" ?# =% g %! ### "G #? | | ??????"""" ####;#!= ! % !#?# """ #? | | ???? ! =%g a # #?# #? | | ???? Ygg < #?# #? | | ???? g #?########? | | ?????#######+######## b@ #! #?????????? | | ????????????????????## #l # # #?????????? | | ?????????????????????### # #?????????? | | ???????????????????????##### #""""""###?????????? | | ???????????????????????????## ####???????????? | | ????????????????????????????#######??????????????? | | ?????????????????????????????????????????????????? | | ?????????????????????????????????????????????????? | | | | | | | | | | | | | | | | | | | | | | | | | | | | | | | | | | | +----------------------------------------------------+ Best States ------------- Heat Dissipation 45 Energy Generation 14 Energy Capacity 265 Matter Stores 300 Matter Capacity 300 Sight Range 16 Terrain Scan Density 10 EM Shielding 2 Armor Coverage 300 Resistance: KI 20 Weapon Shielding 33 Evasion (%) 50 Recoil Reduction 3 Offensive Hacking 10 Item Schematics ----------------- None Robot Schematics ------------------ None Fabricated ------------ Nothing Alien Tech Used ----------------- None Achievements -------------- Maybe Next Time I'll Detach My Launcher Challenges ------------ None Game ------ Seed NeutrinoSeismicAmplifier Manual? 0 Play Time 01:45:23 Cumulative 29.5 hours Start 2024.04.15 @ 10:46:56 End 2024.04.15 @ 13:09:00 Sessions 1 Manual Loads 0 Difficulty Rogue Special Mode None Game No. 10 Rogue 7 Adventurer 3 Explorer 0 Win Type - Total 0 Types 0/0/0/0/0/0/0/0/0 Lore% 19 Gallery% 27 Achievement% 22 Wizard Run 0 Options --------- Layout 1 ASCII 0 Keyboard 0 Movement Mouse Keybinds 0 Fullscreen 1 Font 24/Terminus Map View 50x35 Zoom Use 0% Tactical HUD 0 Map Filters NONE Filters NONE Steam 1 RUN: 9610eecf-f030-481a-bd26-6affe4157d9c